[Event "Titled Tuesday Blitz April 25 Late 2023"]
[White "Kepeshchuk, Mykhaylo"]
[Black "Goltsev, Dmitry"]
[WhiteFideId "14113139"]
[BlackFideId "24176710"]
[WhiteElo "2279"]
[BlackElo "2336"]
[Result "0-1"]
[Round "07"]
[TimeControl "180+2"]
[Date "2023.04.25"]
[WhiteClock "0:00:04"]
[BlackClock "0:00:05"]

1. d4 {[%clk 0:03:00]}  Nf6 {[%clk 0:02:56]} 2. c4 {[%clk 0:03:00]}  e6 {[%clk 0:02:56]} 3. g3 {[%clk 0:02:59]}  Bb4+ {[%clk 0:02:55]} 4. Nd2 {[%clk 0:02:59]}  O-O {[%clk 0:02:51]} 5. Bg2 {[%clk 0:02:59]}  d6 {[%clk 0:02:48]} 6. Nf3 {[%clk 0:02:59]}  Nbd7 {[%clk 0:02:48]} 7. O-O {[%clk 0:03:00]}  Bxd2 {[%clk 0:02:47]} 8. Qxd2 {[%clk 0:02:54]}  e5 {[%clk 0:02:48]} 9. b3 {[%clk 0:02:53]}  exd4 {[%clk 0:02:46]} 10. Nxd4 {[%clk 0:02:52]}  Nc5 {[%clk 0:02:47]} 11. Bb2 {[%clk 0:02:52]}  c6 {[%clk 0:02:45]} 12. Rad1 {[%clk 0:02:48]}  Re8 {[%clk 0:02:45]} 13. Nc2 {[%clk 0:02:30]}  Bf5 {[%clk 0:02:34]} 14. Ne3 {[%clk 0:02:23]}  Bg6 {[%clk 0:02:17]} 15. Qxd6 {[%clk 0:02:19]}  Qxd6 {[%clk 0:02:15]} 16. Rxd6 {[%clk 0:02:20]}  Nfe4 {[%clk 0:02:15]} 17. Rd4 {[%clk 0:02:07]}  a5 {[%clk 0:02:11]} 18. Rfd1 {[%clk 0:02:00]}  h6 {[%clk 0:02:04]} 19. Ba3 {[%clk 0:01:49]}  a4 {[%clk 0:01:45]} 20. b4 {[%clk 0:01:41]}  Nc3 {[%clk 0:01:27]} 21. bxc5 {[%clk 0:01:33]}  Nxe2+ {[%clk 0:01:26]} 22. Kf1 {[%clk 0:01:31]}  Nxd4 {[%clk 0:01:27]} 23. Rxd4 {[%clk 0:01:32]}  Red8 {[%clk 0:01:28]} 24. Rxd8+ {[%clk 0:01:08]}  Rxd8 {[%clk 0:01:26]} 25. Bb4 {[%clk 0:01:08]}  a3 {[%clk 0:01:04]} 26. Bxa3 {[%clk 0:01:04]}  Ra8 {[%clk 0:01:00]} 27. Bb4 {[%clk 0:00:59]}  Rxa2 {[%clk 0:01:00]} 28. Bf3 {[%clk 0:00:58]}  Bd3+ {[%clk 0:00:57]} 29. Kg2 {[%clk 0:00:58]}  g6 {[%clk 0:00:48]} 30. Bc3 {[%clk 0:00:56]}  f5 {[%clk 0:00:45]} 31. Be5 {[%clk 0:00:53]}  Kf7 {[%clk 0:00:42]} 32. h4 {[%clk 0:00:53]}  Ke6 {[%clk 0:00:41]} 33. Bc7 {[%clk 0:00:52]}  g5 {[%clk 0:00:41]} 34. hxg5 {[%clk 0:00:51]}  hxg5 {[%clk 0:00:41]} 35. Bb8 {[%clk 0:00:13]}  g4 {[%clk 0:00:39]} 36. Bd1 {[%clk 0:00:11]}  Rd2 {[%clk 0:00:29]} 37. Bb3 {[%clk 0:00:07]}  Rb2 {[%clk 0:00:26]} 38. Bd1 {[%clk 0:00:07]}  Be4+ {[%clk 0:00:23]} 39. Kf1 {[%clk 0:00:06]}  Bd3+ {[%clk 0:00:16]} 40. Ke1 {[%clk 0:00:06]}  Kf6 {[%clk 0:00:12]} 41. Bc7 {[%clk 0:00:06]}  Ke6 {[%clk 0:00:10]} 42. Bb8 {[%clk 0:00:06]}  Ra2 {[%clk 0:00:10]} 43. Bc7 {[%clk 0:00:06]}  Be4 {[%clk 0:00:10]} 44. Bb8 {[%clk 0:00:05]}  Bf3 {[%clk 0:00:07]} 45. Bf4 {[%clk 0:00:03]}  Ra1 {[%clk 0:00:06]} 46. Kd2 {[%clk 0:00:02]}  Ra2+ {[%clk 0:00:06]} 47. Ke1 {[%clk 0:00:02]}  Ra5 {[%clk 0:00:06]} 48. Kd2 {[%clk 0:00:02]}  Rxc5 {[%clk 0:00:05]} 49. Bxf3 {[%clk 0:00:03]}  gxf3 {[%clk 0:00:06]} 50. Kc3 {[%clk 0:00:03]}  Ra5 {[%clk 0:00:06]} 51. Kd4 {[%clk 0:00:03]}  Ra2 {[%clk 0:00:06]} 52. Nd1 {[%clk 0:00:03]}  b6 {[%clk 0:00:05]} 53. Be3 {[%clk 0:00:04]}  Ra3 {[%clk 0:00:03]} 54. Nc3 {[%clk 0:00:03]}  c5+ {[%clk 0:00:02]} 55. Kd3 {[%clk 0:00:04]}  Ra1 {[%clk 0:00:02]} 56. Nd5 {[%clk 0:00:03]}  Ra3+ {[%clk 0:00:02]} 57. Kd2 {[%clk 0:00:03]}  Ke5 {[%clk 0:00:02]} 58. Nxb6 {[%clk 0:00:02]}  Ra2+ {[%clk 0:00:02]} 59. Kd3 {[%clk 0:00:03]}  Ra3+ {[%clk 0:00:03]} 60. Kd2 {[%clk 0:00:04]}  Ke4 {[%clk 0:00:03]} 61. Nd7 {[%clk 0:00:03]}  Ra2+ {[%clk 0:00:04]} 62. Kd1 {[%clk 0:00:03]}  Kd3 {[%clk 0:00:04]} 63. Nxc5+ {[%clk 0:00:03]}  Kxc4 {[%clk 0:00:05]} 64. Ne6 {[%clk 0:00:04]}  Rb2 {[%clk 0:00:04]} 65. Nf4 {[%clk 0:00:05]}  Ra2 {[%clk 0:00:03]} 66. Ke1 {[%clk 0:00:05]}  Ra1+ {[%clk 0:00:03]} 67. Kd2 {[%clk 0:00:05]}  Ra2+ {[%clk 0:00:04]} 68. Ke1 {[%clk 0:00:05]}  Kc3 {[%clk 0:00:04]} 69. Nd5+ {[%clk 0:00:03]}  Kb3 {[%clk 0:00:04]} 70. Nf4 {[%clk 0:00:04]}  Kc2 {[%clk 0:00:05]} 0-1


[Site "https://www.chess.com"]

[Event "Titled Tuesday Blitz April 25 Late 2023"]
[White "Kuzmin, Roman"]
[Black "Weetik, Vjacheslav"]
[WhiteFideId "44134932"]
[BlackFideId "4153472"]
[WhiteElo "2192"]
[BlackElo "2469"]
[Result "0-1"]
[Round "07"]
[TimeControl "180+2"]
[Date "2023.04.25"]
[WhiteClock "0:00:08"]
[BlackClock "0:00:03"]

1. e4 {[%clk 0:03:00]}  c5 {[%clk 0:02:58]} 2. Nf3 {[%clk 0:03:01]}  Nc6 {[%clk 0:02:58]} 3. d4 {[%clk 0:03:01]}  cxd4 {[%clk 0:02:59]} 4. Nxd4 {[%clk 0:03:02]}  g6 {[%clk 0:03:00]} 5. Nc3 {[%clk 0:03:02]}  Bg7 {[%clk 0:03:00]} 6. Be3 {[%clk 0:03:03]}  Nf6 {[%clk 0:03:00]} 7. Nxc6 {[%clk 0:03:04]}  bxc6 {[%clk 0:03:00]} 8. e5 {[%clk 0:03:04]}  Ng8 {[%clk 0:03:00]} 9. Bd4 {[%clk 0:03:04]}  Qa5 {[%clk 0:02:59]} 10. Bc4 {[%clk 0:03:05]}  Bxe5 {[%clk 0:02:57]} 11. O-O {[%clk 0:03:05]}  f6 {[%clk 0:02:42]} 12. Re1 {[%clk 0:03:00]}  Bxd4 {[%clk 0:02:32]} 13. Qxd4 {[%clk 0:03:01]}  d5 {[%clk 0:02:31]} 14. Nxd5 {[%clk 0:01:56]}  cxd5 {[%clk 0:02:25]} 15. Bxd5 {[%clk 0:01:57]}  Rb8 {[%clk 0:02:03]} 16. Qc4 {[%clk 0:01:29]}  Nh6 {[%clk 0:01:12]} 17. Qf4 {[%clk 0:01:17]}  Qxd5 {[%clk 0:00:59]} 18. Qxf6 {[%clk 0:01:07]}  Ng8 {[%clk 0:00:15]} 19. Qxh8 {[%clk 0:01:07]}  Bb7 {[%clk 0:00:14]} 20. f3 {[%clk 0:01:08]}  Qf7 {[%clk 0:00:11]} 21. Rad1 {[%clk 0:01:04]}  Kf8 {[%clk 0:00:10]} 22. Qe5 {[%clk 0:00:55]}  Rc8 {[%clk 0:00:09]} 23. Rd7 {[%clk 0:00:54]}  Bc6 {[%clk 0:00:06]} 24. Rc7 {[%clk 0:00:52]}  Rxc7 {[%clk 0:00:06]} 25. Qxc7 {[%clk 0:00:53]}  Be8 {[%clk 0:00:06]} 26. Qxa7 {[%clk 0:00:53]}  Qc4 {[%clk 0:00:07]} 27. c3 {[%clk 0:00:47]}  Qb5 {[%clk 0:00:06]} 28. b4 {[%clk 0:00:45]}  Qc4 {[%clk 0:00:06]} 29. Qa3 {[%clk 0:00:34]}  Nf6 {[%clk 0:00:05]} 30. Qb3 {[%clk 0:00:33]}  Qd3 {[%clk 0:00:05]} 31. c4 {[%clk 0:00:31]}  Qd4+ {[%clk 0:00:06]} 32. Qe3 {[%clk 0:00:31]}  Qd7 {[%clk 0:00:02]} 33. a4 {[%clk 0:00:29]}  Bf7 {[%clk 0:00:03]} 34. c5 {[%clk 0:00:28]}  Nd5 {[%clk 0:00:03]} 35. Qa3 {[%clk 0:00:20]}  Qf5 {[%clk 0:00:03]} 36. b5 {[%clk 0:00:18]}  Nf4 {[%clk 0:00:03]} 37. c6 {[%clk 0:00:17]}  Qg5 {[%clk 0:00:03]} 38. Qb2 {[%clk 0:00:15]}  Nd3 {[%clk 0:00:02]} 39. Qh8+ {[%clk 0:00:14]}  Bg8 {[%clk 0:00:03]} 40. c7 {[%clk 0:00:09]}  Qc5+ {[%clk 0:00:02]} 41. Kh1 {[%clk 0:00:07]}  Nf2+ {[%clk 0:00:03]} 42. Kg1 {[%clk 0:00:07]}  Nh3+ {[%clk 0:00:03]} 43. Kh1 {[%clk 0:00:08]}  Qg1+ {[%clk 0:00:03]} 0-1


[Site "https://www.chess.com"]

[Event "Titled Tuesday Blitz April 25 Late 2023"]
[White "Sviridov, Valery"]
[Black "Jimenez Almeida, Luis David"]
[WhiteFideId "4120680"]
[BlackFideId "22242244"]
[WhiteElo "2457"]
[BlackElo "2245"]
[Result "1-0"]
[Round "07"]
[TimeControl "180+2"]
[Date "2023.04.25"]
[WhiteClock "0:01:40"]
[BlackClock "0:00:27"]

1. d4 {[%clk 0:03:00]}  g6 {[%clk 0:02:55]} 2. e4 {[%clk 0:02:59]}  c6 {[%clk 0:02:54]} 3. Nc3 {[%clk 0:02:57]}  Bg7 {[%clk 0:02:53]} 4. Nf3 {[%clk 0:02:57]}  d6 {[%clk 0:02:50]} 5. h3 {[%clk 0:02:55]}  Nf6 {[%clk 0:02:50]} 6. a4 {[%clk 0:02:52]}  a5 {[%clk 0:02:49]} 7. Be2 {[%clk 0:02:52]}  Na6 {[%clk 0:02:48]} 8. O-O {[%clk 0:02:52]}  O-O {[%clk 0:02:48]} 9. Be3 {[%clk 0:02:51]}  Nc7 {[%clk 0:02:48]} 10. Qd2 {[%clk 0:02:51]}  Re8 {[%clk 0:02:47]} 11. Rfd1 {[%clk 0:02:50]}  Nd7 {[%clk 0:02:45]} 12. Bc4 {[%clk 0:02:48]}  e6 {[%clk 0:02:39]} 13. Bg5 {[%clk 0:02:43]}  Bf6 {[%clk 0:02:38]} 14. Bxf6 {[%clk 0:02:42]}  Qxf6 {[%clk 0:02:38]} 15. e5 {[%clk 0:02:41]}  dxe5 {[%clk 0:02:33]} 16. Ne4 {[%clk 0:02:41]}  Qg7 {[%clk 0:02:27]} 17. dxe5 {[%clk 0:02:25]}  Nxe5 {[%clk 0:02:28]} 18. Nxe5 {[%clk 0:02:26]}  Qxe5 {[%clk 0:02:27]} 19. Nd6 {[%clk 0:02:27]}  Rf8 {[%clk 0:02:19]} 20. Re1 {[%clk 0:02:25]}  Qc5 {[%clk 0:02:06]} 21. Qf4 {[%clk 0:01:53]}  Nd5 {[%clk 0:01:56]} 22. Qg3 {[%clk 0:01:53]}  Rd8 {[%clk 0:01:49]} 23. Ne4 {[%clk 0:01:53]}  Qxc4 {[%clk 0:01:43]} 24. Qh4 {[%clk 0:01:52]}  Bd7 {[%clk 0:00:36]} 25. Nf6+ {[%clk 0:01:52]}  Nxf6 {[%clk 0:00:37]} 26. Qxc4 {[%clk 0:01:52]}  b6 {[%clk 0:00:37]} 27. Qd4 {[%clk 0:01:51]}  Nd5 {[%clk 0:00:33]} 28. Rad1 {[%clk 0:01:50]}  c5 {[%clk 0:00:33]} 29. Qe5 {[%clk 0:01:49]}  Bxa4 {[%clk 0:00:32]} 30. b3 {[%clk 0:01:46]}  Bc6 {[%clk 0:00:32]} 31. c4 {[%clk 0:01:46]}  Nb4 {[%clk 0:00:33]} 32. Rxd8+ {[%clk 0:01:46]}  Rxd8 {[%clk 0:00:34]} 33. Qc7 {[%clk 0:01:47]}  Rd3 {[%clk 0:00:33]} 34. Qxb6 {[%clk 0:01:46]}  Rxb3 {[%clk 0:00:33]} 35. Qxa5 {[%clk 0:01:44]}  Rc3 {[%clk 0:00:30]} 36. Qxc5 {[%clk 0:01:40]}  Nd3 {[%clk 0:00:27]} 37. Qd4 {[%clk 0:01:40]} 1-0


[Site "https://www.chess.com"]

[Event "Titled Tuesday Blitz April 25 Late 2023"]
[White "Cheparinov, Ivan"]
[Black "Karamsetty, Jeevan"]
[WhiteFideId "2905540"]
[BlackFideId "2025337"]
[WhiteElo "2613"]
[BlackElo "2111"]
[Result "1-0"]
[Round "07"]
[TimeControl "180+2"]
[Date "2023.04.25"]
[WhiteClock "0:01:39"]
[BlackClock "0:00:04"]

1. Nf3 {[%clk 0:03:00]}  g6 {[%clk 0:02:59]} 2. e4 {[%clk 0:02:58]}  Bg7 {[%clk 0:02:58]} 3. d4 {[%clk 0:02:58]}  d6 {[%clk 0:02:56]} 4. c3 {[%clk 0:02:58]}  Nf6 {[%clk 0:02:56]} 5. Bd3 {[%clk 0:02:59]}  O-O {[%clk 0:02:57]} 6. O-O {[%clk 0:02:59]}  Nc6 {[%clk 0:02:56]} 7. Nbd2 {[%clk 0:02:59]}  e5 {[%clk 0:02:55]} 8. dxe5 {[%clk 0:02:53]}  dxe5 {[%clk 0:02:53]} 9. Nc4 {[%clk 0:02:48]}  Qe7 {[%clk 0:02:46]} 10. a4 {[%clk 0:02:45]}  Bg4 {[%clk 0:02:26]} 11. h3 {[%clk 0:02:42]}  Bxf3 {[%clk 0:02:22]} 12. Qxf3 {[%clk 0:02:43]}  Rad8 {[%clk 0:02:22]} 13. b4 {[%clk 0:02:35]}  Nh5 {[%clk 0:02:14]} 14. b5 {[%clk 0:02:33]}  Nb8 {[%clk 0:02:09]} 15. Ba3 {[%clk 0:02:22]}  Qg5 {[%clk 0:01:50]} 16. Bxf8 {[%clk 0:02:22]}  Bxf8 {[%clk 0:01:32]} 17. Rfd1 {[%clk 0:02:20]}  Nf4 {[%clk 0:01:28]} 18. Bf1 {[%clk 0:02:19]}  Re8 {[%clk 0:01:24]} 19. g3 {[%clk 0:02:17]}  Bc5 {[%clk 0:01:17]} 20. h4 {[%clk 0:02:11]}  Qh5 {[%clk 0:00:53]} 21. Qxh5 {[%clk 0:02:09]}  Nxh5 {[%clk 0:00:54]} 22. Kg2 {[%clk 0:02:09]}  f5 {[%clk 0:00:46]} 23. Rd5 {[%clk 0:02:07]}  b6 {[%clk 0:00:36]} 24. Rxe5 {[%clk 0:02:06]}  Rf8 {[%clk 0:00:28]} 25. exf5 {[%clk 0:02:06]}  Nd7 {[%clk 0:00:26]} 26. Re2 {[%clk 0:01:59]}  Rxf5 {[%clk 0:00:23]} 27. Rd1 {[%clk 0:02:00]}  Ndf6 {[%clk 0:00:21]} 28. f4 {[%clk 0:01:56]}  Ng4 {[%clk 0:00:15]} 29. Rd7 {[%clk 0:01:51]}  Nxf4+ {[%clk 0:00:06]} 30. gxf4 {[%clk 0:01:49]}  Rxf4 {[%clk 0:00:07]} 31. Re8+ {[%clk 0:01:49]}  Bf8 {[%clk 0:00:07]} 32. Kg3 {[%clk 0:01:41]}  Rxf1 {[%clk 0:00:04]} 33. Kxg4 {[%clk 0:01:42]}  h5+ {[%clk 0:00:04]} 34. Kg3 {[%clk 0:01:42]}  Rg1+ {[%clk 0:00:04]} 35. Kf2 {[%clk 0:01:40]}  Rg4 {[%clk 0:00:04]} 36. Ne5 {[%clk 0:01:39]}  Rf4+ {[%clk 0:00:04]} 37. Kg3 {[%clk 0:01:39]}  Rf5 {[%clk 0:00:04]} 38. Nxg6 {[%clk 0:01:39]} 1-0


[Site "https://www.chess.com"]

[Event "Titled Tuesday Blitz April 25 Late 2023"]
[White "Nasuta, Grzegorz"]
[Black "Liu, Casper"]
[WhiteFideId "1141686"]
[BlackFideId "1454153"]
[WhiteElo "2449"]
[BlackElo "2221"]
[Result "1-0"]
[Round "07"]
[TimeControl "180+2"]
[Date "2023.04.25"]
[WhiteClock "0:00:15"]
[BlackClock "0:00:36"]

1. e4 {[%clk 0:03:00]}  e5 {[%clk 0:02:52]} 2. Nf3 {[%clk 0:03:00]}  Nc6 {[%clk 0:02:52]} 3. Bc4 {[%clk 0:03:00]}  Bc5 {[%clk 0:02:51]} 4. O-O {[%clk 0:02:58]}  d6 {[%clk 0:02:48]} 5. c3 {[%clk 0:02:54]}  Bg4 {[%clk 0:02:48]} 6. d3 {[%clk 0:02:49]}  h6 {[%clk 0:02:46]} 7. Be3 {[%clk 0:02:42]}  Bb6 {[%clk 0:02:42]} 8. Nbd2 {[%clk 0:02:40]}  Nf6 {[%clk 0:02:41]} 9. a4 {[%clk 0:02:34]}  O-O {[%clk 0:02:34]} 10. h3 {[%clk 0:02:29]}  Bh5 {[%clk 0:02:34]} 11. g4 {[%clk 0:02:08]}  Bg6 {[%clk 0:02:32]} 12. Bb3 {[%clk 0:01:19]}  Bh7 {[%clk 0:02:05]} 13. Qe2 {[%clk 0:01:16]}  Ne7 {[%clk 0:01:51]} 14. Nh4 {[%clk 0:01:07]}  Ng6 {[%clk 0:01:43]} 15. Nf5 {[%clk 0:01:06]}  d5 {[%clk 0:01:40]} 16. a5 {[%clk 0:00:30]}  Bxe3 {[%clk 0:01:28]} 17. fxe3 {[%clk 0:00:31]}  c6 {[%clk 0:01:24]} 18. a6 {[%clk 0:00:28]}  Rb8 {[%clk 0:01:23]} 19. axb7 {[%clk 0:00:26]}  Rxb7 {[%clk 0:01:24]} 20. Ra3 {[%clk 0:00:23]}  Qd7 {[%clk 0:01:06]} 21. Nxh6+ {[%clk 0:00:21]}  gxh6 {[%clk 0:01:01]} 22. Rxf6 {[%clk 0:00:21]}  Kg7 {[%clk 0:01:01]} 23. Rf1 {[%clk 0:00:20]}  Rd8 {[%clk 0:00:54]} 24. exd5 {[%clk 0:00:20]}  Qe7 {[%clk 0:00:54]} 25. dxc6 {[%clk 0:00:19]}  Rxb3 {[%clk 0:00:52]} 26. Rxb3 {[%clk 0:00:19]}  Qh4 {[%clk 0:00:51]} 27. Qg2 {[%clk 0:00:17]}  Rc8 {[%clk 0:00:48]} 28. Nf3 {[%clk 0:00:17]}  Qe7 {[%clk 0:00:47]} 29. Rb7 {[%clk 0:00:18]}  Rc7 {[%clk 0:00:48]} 30. Rxc7 {[%clk 0:00:18]}  Qxc7 {[%clk 0:00:48]} 31. Nd2 {[%clk 0:00:18]}  Ne7 {[%clk 0:00:48]} 32. Qf3 {[%clk 0:00:17]}  Bg6 {[%clk 0:00:48]} 33. Nc4 {[%clk 0:00:17]}  Nxc6 {[%clk 0:00:47]} 34. e4 {[%clk 0:00:17]}  Qd8 {[%clk 0:00:44]} 35. Kg2 {[%clk 0:00:16]}  Qe7 {[%clk 0:00:42]} 36. b4 {[%clk 0:00:16]}  Nd8 {[%clk 0:00:42]} 37. Ne3 {[%clk 0:00:16]}  Qe6 {[%clk 0:00:38]} 38. Nd5 {[%clk 0:00:16]}  Nb7 {[%clk 0:00:34]} 39. Qf6+ {[%clk 0:00:16]}  Qxf6 {[%clk 0:00:34]} 40. Rxf6 {[%clk 0:00:16]}  a5 {[%clk 0:00:35]} 41. Rb6 {[%clk 0:00:15]}  axb4 {[%clk 0:00:35]} 42. Rxb7 {[%clk 0:00:15]}  bxc3 {[%clk 0:00:36]} 43. Nxc3 {[%clk 0:00:15]} 1-0


[Site "https://www.chess.com"]

[Event "Titled Tuesday Blitz April 25 Late 2023"]
[White "Spata, German"]
[Black "Erzhanov, Arman"]
[WhiteFideId "113026"]
[BlackFideId "4138821"]
[WhiteElo "2238"]
[BlackElo "2138"]
[Result "1-0"]
[Round "07"]
[TimeControl "180+2"]
[Date "2023.04.25"]
[WhiteClock "0:00:14"]
[BlackClock "0:00:35"]

1. e4 {[%clk 0:02:58]}  d6 {[%clk 0:03:00]} 2. d3 {[%clk 0:02:57]}  Nf6 {[%clk 0:03:00]} 3. Nf3 {[%clk 0:02:58]}  e5 {[%clk 0:02:59]} 4. g3 {[%clk 0:02:58]}  Nbd7 {[%clk 0:03:00]} 5. Bg2 {[%clk 0:02:59]}  Be7 {[%clk 0:03:00]} 6. O-O {[%clk 0:02:59]}  O-O {[%clk 0:03:00]} 7. Re1 {[%clk 0:02:59]}  c6 {[%clk 0:03:01]} 8. c3 {[%clk 0:02:59]}  Re8 {[%clk 0:03:01]} 9. d4 {[%clk 0:02:59]}  Bf8 {[%clk 0:03:02]} 10. dxe5 {[%clk 0:02:58]}  dxe5 {[%clk 0:03:02]} 11. a4 {[%clk 0:02:58]}  Qc7 {[%clk 0:03:02]} 12. Na3 {[%clk 0:02:58]}  Nc5 {[%clk 0:03:00]} 13. Qc2 {[%clk 0:02:55]}  Bg4 {[%clk 0:02:58]} 14. Bg5 {[%clk 0:02:54]}  Nfd7 {[%clk 0:02:56]} 15. Nc4 {[%clk 0:02:53]}  f6 {[%clk 0:02:56]} 16. Be3 {[%clk 0:02:51]}  Be6 {[%clk 0:02:54]} 17. Nfd2 {[%clk 0:02:48]}  Nb6 {[%clk 0:02:42]} 18. Nxb6 {[%clk 0:02:38]}  axb6 {[%clk 0:02:43]} 19. b4 {[%clk 0:02:39]}  Nd7 {[%clk 0:02:41]} 20. Bf1 {[%clk 0:02:34]}  c5 {[%clk 0:02:34]} 21. Qb2 {[%clk 0:02:29]}  c4 {[%clk 0:02:29]} 22. Qa2 {[%clk 0:02:23]}  Rec8 {[%clk 0:02:29]} 23. f3 {[%clk 0:02:16]}  b5 {[%clk 0:02:27]} 24. a5 {[%clk 0:02:15]}  Ra6 {[%clk 0:02:10]} 25. Qb2 {[%clk 0:02:14]}  Rd6 {[%clk 0:02:09]} 26. Be2 {[%clk 0:02:10]}  Rd8 {[%clk 0:02:04]} 27. Nf1 {[%clk 0:02:10]}  Qc8 {[%clk 0:02:02]} 28. Rad1 {[%clk 0:02:08]}  Nb8 {[%clk 0:02:01]} 29. Rxd6 {[%clk 0:02:07]}  Rxd6 {[%clk 0:02:01]} 30. Rd1 {[%clk 0:02:06]}  Rxd1 {[%clk 0:02:01]} 31. Bxd1 {[%clk 0:02:07]}  Qd7 {[%clk 0:02:00]} 32. Be2 {[%clk 0:02:08]}  Nc6 {[%clk 0:01:52]} 33. Bf2 {[%clk 0:02:06]}  Kf7 {[%clk 0:01:49]} 34. Ne3 {[%clk 0:01:58]}  g6 {[%clk 0:01:46]} 35. Qa2 {[%clk 0:01:52]}  Nb8 {[%clk 0:01:45]} 36. Bf1 {[%clk 0:01:40]}  Bh6 {[%clk 0:01:45]} 37. Qc2 {[%clk 0:01:39]}  Qd6 {[%clk 0:01:45]} 38. Be2 {[%clk 0:01:35]}  Qd7 {[%clk 0:01:45]} 39. Nf1 {[%clk 0:01:29]}  Ke7 {[%clk 0:01:42]} 40. Be3 {[%clk 0:01:27]}  Bxe3+ {[%clk 0:01:41]} 41. Nxe3 {[%clk 0:01:28]}  Nc6 {[%clk 0:01:40]} 42. Kf2 {[%clk 0:01:27]}  h5 {[%clk 0:01:39]} 43. h4 {[%clk 0:01:25]}  Kf7 {[%clk 0:01:39]} 44. Qc1 {[%clk 0:01:25]}  Nb8 {[%clk 0:01:39]} 45. Nf1 {[%clk 0:01:21]}  Nc6 {[%clk 0:01:39]} 46. Qh6 {[%clk 0:01:20]}  Ne7 {[%clk 0:01:25]} 47. Ne3 {[%clk 0:01:10]}  Kg8 {[%clk 0:01:18]} 48. Nf1 {[%clk 0:01:04]}  Bf7 {[%clk 0:01:13]} 49. Ke1 {[%clk 0:00:59]}  Qd6 {[%clk 0:01:12]} 50. Qe3 {[%clk 0:00:56]}  Nc8 {[%clk 0:01:08]} 51. Nd2 {[%clk 0:00:51]}  Kf8 {[%clk 0:01:08]} 52. f4 {[%clk 0:00:50]}  exf4 {[%clk 0:01:07]} 53. gxf4 {[%clk 0:00:50]}  Kg7 {[%clk 0:01:05]} 54. Nf3 {[%clk 0:00:48]}  Ne7 {[%clk 0:01:02]} 55. e5 {[%clk 0:00:41]}  fxe5 {[%clk 0:01:01]} 56. Qxe5+ {[%clk 0:00:37]}  Qf6 {[%clk 0:01:01]} 57. Nd4 {[%clk 0:00:25]}  Qxe5 {[%clk 0:00:42]} 58. fxe5 {[%clk 0:00:25]}  Be8 {[%clk 0:00:42]} 59. Bf3 {[%clk 0:00:23]}  Bc6 {[%clk 0:00:23]} 60. Bxc6 {[%clk 0:00:14]}  bxc6 {[%clk 0:00:24]} 61. a6 {[%clk 0:00:14]}  Nc8 {[%clk 0:00:25]} 62. Nxc6 {[%clk 0:00:14]}  Kf7 {[%clk 0:00:25]} 63. a7 {[%clk 0:00:14]}  Nxa7 {[%clk 0:00:26]} 64. Nxa7 {[%clk 0:00:13]}  Ke6 {[%clk 0:00:26]} 65. Nxb5 {[%clk 0:00:14]}  Kxe5 {[%clk 0:00:27]} 66. Na3 {[%clk 0:00:14]}  Kd5 {[%clk 0:00:27]} 67. Kf2 {[%clk 0:00:11]}  Ke4 {[%clk 0:00:28]} 68. Nxc4 {[%clk 0:00:11]}  Kd3 {[%clk 0:00:27]} 69. b5 {[%clk 0:00:11]}  Kxc4 {[%clk 0:00:28]} 70. b6 {[%clk 0:00:11]}  Kxc3 {[%clk 0:00:29]} 71. b7 {[%clk 0:00:12]}  Kd4 {[%clk 0:00:30]} 72. b8=Q {[%clk 0:00:13]}  Ke4 {[%clk 0:00:30]} 73. Qg3 {[%clk 0:00:13]}  Kf5 {[%clk 0:00:31]} 74. Qg5+ {[%clk 0:00:13]}  Ke6 {[%clk 0:00:31]} 75. Qxg6+ {[%clk 0:00:13]}  Ke5 {[%clk 0:00:32]} 76. Qxh5+ {[%clk 0:00:14]}  Kf4 {[%clk 0:00:33]} 77. Qg5+ {[%clk 0:00:14]}  Ke4 {[%clk 0:00:34]} 78. h5 {[%clk 0:00:13]}  Kd4 {[%clk 0:00:35]} 79. h6 {[%clk 0:00:14]} 1-0


[Site "https://www.chess.com"]